Cogmind - Beta 16.1 @@@ ROGUE MODE // 2026.04.30 @ 10:29:55 Player: coopco Result: Destroyed by Combat Programmer with EMDS Performance ------------- Evolutions (5) 2500 Regions Visited (13) 2600 Robots Destroyed (64) 320 Value Destroyed (2170) 2170 Prototype IDs (220) 4400 Alien Tech Used (0) 0 Bonus (3835) 3835 TOTAL SCORE: 15825 Bonus ------- Follower Combat Kills 35 Met Data Miner 300 Used Data Conduit 3000 Pursued by Intercept 500 Cogmind --------- Core Integrity 0/1000 Matter 234/300 Energy 29/100 System Corruption 3% Temperature Cool (0) Movement Core (50) Location -5/Factory Parts ------- > --- POWER (2) -------- (None) > --- PROPULSION (6) --- (None) > --- UTILITY (7) ------ Advanced Signal Interpreter Advanced Terrain Scan Processor System Mapper > --- WEAPON (2) ------- Lance > --- INVENTORY (5) ---- Nuclear Pulse Array Enhanced Optical Array Molecular Deconstructor Peak State ------------ > --- POWER ------------ Light Angular Momentum Engine Light Neutrino Core > --- PROPULSION ------- Gravmag Array Gravmag Array Antigrav System Antigrav System > --- UTILITY ---------- High-capacity Storage Unit Improved Sensor Array Advanced Signal Interpreter Advanced Terrain Scanner Advanced Terrain Scan Processor System Mapper Quantum Router > --- WEAPON ----------- Improved Remote Datajack Spear > --- INVENTORY -------- Micro Nuclear Core Thunder Leg Thunder Leg Makeshift Flight Unit Advanced Heat Sink Advanced Weight Redist. System Enhanced Optical Array Improved Sensor Array Melee Analysis Suite Improved Melee Analysis Suite Improved Weapon Cycler Transmission Jammer Experimental Utility Shielding Deep Network Scanner System Restoration Module Hypervelocity Gauss Rifle Hypervelocity Gauss Rifle Improved Remote Datajack Molecular Deconstructor [Rating: 101] Favorites ----------- Power Micro Nuclear Core Engine Light Ion Engine Power Core Micro Nuclear Core Propulsion Improved Aluminum Leg Treads Light Treads Leg Improved Aluminum Leg Wheel Wheel Hover Unit Airjet Flight Unit VTOL Module Utility Large Storage Unit Device Seismic Detector Storage Large Storage Unit Processor Transport Network Coupler Hackware System Mapper Protection Makeshift Light Armor Plating Weapon Medium Laser Energy Gun Medium Laser Energy Cannon Plasma Cannon Ballistic Gun Light Assault Rifle Ballistic Cannon Advanced Assault Cannon Launcher Rocket Launcher Special Weapon Improved Remote Datajack Impact Weapon Hammer Slashing Weapon Chainsword Piercing Weapon Spear Build | -11 -10 -10 -10 -8 -7 -7 -7 -6 -6 -6 -6 -5 -5 ------- Run | Yrd Mat Min Sub Mat Fac Low Low Fac Low Low Dat Pro Fac Slots Evolved 10 | . . . . 4 2 . . 2 . . . . 2 Power 1 | . . . . . . . . 1 . . . . . Propulsion 4 | . . . . 2 1 . . . . . . . 1 Utility 5 | . . . . 2 1 . . 1 . . . . 1 Weapon . | . . . . . . . . . . . . . . Parts Attached 116 | 6 4 2 3 16 13 4 23 13 . . 2 1 29 Power 17 | 1 . 2 1 1 1 1 2 2 . . . 1 5 Engine 8 | 1 . 1 1 1 1 . 1 . . . . . 2 Core 9 | . . 1 . . . 1 1 2 . . . 1 3 Reactor . | . . . . . . . . . . . . . . Propulsion 41 | 2 2 . 1 9 4 1 9 2 . . . . 11 Treads 1 | . . . . . . . 1 . . . . . . Leg 6 | . 2 . 1 1 . . 2 . . . . . . Wheel 2 | 2 . . . . . . . . . . . . . Hover 16 | . . . . 4 4 1 2 2 . . . . 3 Flight 16 | . . . . 4 . . 4 . . . . . 8 Utility 33 | 1 2 . . 4 5 1 5 8 . . 1 . 6 Device 12 | . 1 . . 2 1 . 2 5 . . . . 1 Storage 5 | 1 1 . . . 1 . 1 . . . . . 1 Processor 7 | . . . . . 2 . 1 3 . . 1 . . Hackware 4 | . . . . . 1 . . . . . . . 3 Protection 5 | . . . . 2 . 1 1 . . . . . 1 Artifact . | . . . . . . . . . . . . . . Weapon 25 | 2 . . 1 2 3 1 7 1 . . 1 . 7 Energy Gun 4 | 1 . . . 1 . . 2 . . . . . . Energy Cannon 1 | . . . . . . . 1 . . . . . . Ballistic Gun 5 | 1 . . . 1 . . 1 . . . . . 2 Ballistic Cannon 1 | . . . . . . . 1 . . . . . . Launcher 1 | . . . . . . . 1 . . . . . . Special Weapon 2 | . . . . . . . 1 . . . . . 1 Impact Weapon 2 | . . . 1 . 1 . . . . . . . . Slashing Weapon 6 | . . . . . 2 1 . . . . 1 . 2 Piercing Weapon 3 | . . . . . . . . 1 . . . . 2 Special Melee Weapon . | . . . . . . . . . . . . . . Unidentified Prototypes 4 | . . . . . . . 1 . . . . . 3 Parts Lost 57 | . . 1 2 1 5 2 26 . . . . . 20 Power 8 | . . 1 1 . 1 . 2 . . . . . 3 Propulsion 24 | . . . 1 . 2 2 10 . . . . . 9 Utility 16 | . . . . . 2 . 7 . . . . . 7 Weapon 9 | . . . . 1 . . 7 . . . . . 1 Highest Loss Streak 15 | . . 1 1 1 3 2 9 . . . . . 15 To Critical Strikes . | . . . . . . . . . . . . . . Average Backups 10 | 2 7 9 9 9 12 14 11 3 8 12 13 12 12 Power . | . 1 1 . . . . . . . 1 1 . . Propulsion 1 | 1 2 2 1 1 3 2 . . . . . . 2 Utility 4 | . . . 1 1 2 4 6 2 6 8 9 9 7 Weapon 4 | . 3 5 6 6 5 5 5 1 1 2 3 2 2 Tool/Special . | . . . . . . . . . . . . . . Unused Backups 44 | . 4 1 . 5 5 2 4 3 . 4 2 2 12 Power 3 | . . . . 1 . . . 1 . 1 . . . Propulsion 7 | . 3 . . . . . . . . 1 . . 3 Utility 19 | . . . . 2 1 . 2 2 . 2 1 2 7 Weapon 13 | . 1 1 . 2 4 1 2 . . . 1 . 1 Tool/Special 2 | . . . . . . 1 . . . . . . 1 Average Slot Usage (%) 84 | . 92 99 99 92 88 92 69 53 80 80 82 85 83 Engine 3 | . 14 10 . 9 6 3 1 . . . . . 1 Core 6 | . . 3 13 . . 3 5 9 13 13 13 12 7 Treads 1 | . . . . . . . 4 . . . . . . Leg 11 | . 21 28 27 17 . . 6 . . . . . . Hover 7 | . . . . 8 31 38 . 3 13 13 13 13 12 Flight 5 | . . . . 4 5 . 9 11 6 6 6 6 11 Device 10 | . 7 14 14 18 13 11 . 15 20 20 16 13 9 Storage 8 | . 14 14 14 9 7 7 6 1 6 6 6 6 3 Processor 7 | . . . . . 12 15 11 8 13 13 16 20 11 Hackware 1 | . . . . . . . . . . . . . 10 Protection 2 | . . . . 8 . 3 5 . . . . . 1 Energy Gun 5 | . 14 14 14 9 . . . . . . . . . Energy Cannon 1 | . . . . . . . 5 . . . . . . Ballistic Gun 4 | . 14 14 6 4 . . 1 . . . . . . Impact Weapon 1 | . . . 7 4 3 . . . . . . . . Slashing Weapon 2 | . . . . . 3 7 4 . . . 2 6 3 Piercing Weapon 1 | . . . . . . . . 3 6 6 6 6 5 Peak Build Rating 101 | 6 10 12 12 30 39 42 41 61 62 64 69 69 101 Average Rating 33 | 4 8 10 11 18 34 39 30 35 61 63 66 67 84 On Entrance 33 | . 6 10 12 10 30 38 36 6 60 62 64 69 68 Avg Prop Armor Cover (%) 5 | . . . . 7 . . 11 6 3 3 3 3 3 Naked Turns . | . . . . . . . . . . . . . . Heaviest Build 65 | 11 17 19 20 29 37 35 45 37 37 37 39 39 65 Greatest Support 62 | 20 26 26 26 39 46 40 40 49 40 40 40 40 62 Greatest Overweight (x) 15 | 1 . . . 4 . 1 14 . . . . . 15 Average Overweight (x) . | . . . . . . . 1 . . . . . . Largest Inventory Capacity 20 | 8 10 10 10 10 15 15 15 15 15 15 15 15 20 Average Capacity 12 | 7 8 10 10 10 13 15 14 6 15 15 15 15 15 Most Carried 20 | 4 8 10 10 10 15 15 15 6 10 15 15 15 20 Average Carried 11 | 2 7 9 9 9 13 14 12 4 9 14 14 13 13 Final Capacity 15 | 8 10 10 10 10 15 15 5 15 15 15 15 15 5 Final Carried 15 | 4 8 10 9 10 15 15 4 6 10 15 15 14 5 Class Distribution -------------------- 60% | Mutant 13% | Scout 8% | Gladiator 4% | Scavenger-Mutant 3% | Sprinter 3% | Hacker-Assassin 3% | Hacker-Scout Dominant Class ---------------- Mutant | -10/Materials Mutant | -10/Mines Mutant | -10/Subcaves Mutant | -8/Materials Gladiator | -7/Factory Gladiator | -7/Lower Caves Mutant | -7/Lower Caves Sprinter | -6/Factory Scout | -6/Lower Caves Scout | -6/Lower Caves Scout | -6/Data Miner Scout | -5/Proximity Caves Hacker-Scout | -5/Factory Resources | -11 -10 -10 -10 -8 -7 -7 -7 -6 -6 -6 -6 -5 -5 ----------- Run | Yrd Mat Min Sub Mat Fac Low Low Fac Low Low Dat Pro Fac Matter Collected 1641 | 182 86 74 26 222 145 50 392 . 140 . 20 6 298 Remotely . | . . . . . . . . . . . . . . Salvage Created 2785 | . 111 180 91 311 222 210 795 . 260 203 21 14 367 Parts 125 | . 6 11 4 22 9 10 30 . 2 1 3 . 27 Haulers Intercepted 1 | . . . . . 1 . . . . . . . . Recyclers Shooed 1 | . . . . 1 . . . . . . . . . Parts Field Recycled . | . . . . . . . . . . . . . . Retrieved Matter . | . . . . . . . . . . . . . . Parts Self-Destructed 53 | . . . 7 . . 8 25 . . 4 . 9 . Prevented . | . . . . . . . . . . . . . . Parts Restored . | . . . . . . . . . . . . . . Kills | -11 -10 -10 -10 -8 -7 -7 -7 -6 -6 -6 -6 -5 -5 ------- Run | Yrd Mat Min Sub Mat Fac Low Low Fac Low Low Dat Pro Fac Combat Hostiles Destroyed 60 | . 3 4 3 9 6 6 17 . . . . 1 11 Melee 23 | . . . 1 . 5 6 2 . . . . 1 8 Guns 24 | . 3 4 1 9 . . 5 . . . . . 2 Cannons 3 | . . . . . . . 3 . . . . . . AOE 8 | . . . . . . . 7 . . . . . 1 Classes Destroyed 13 | . 2 . 1 2 2 . 3 . . . . 1 2 Hauler 1 | . . . . . 1 . . . . . . . . Recycler 1 | . . . . 1 . . . . . . . . . Drone 1 | . . . . . . . . . . . . 1 . Watcher 1 | . . . . . . . . . . . . . 1 Swarmer 28 | . 1 . . 6 4 4 7 . . . . . 6 Cutter 3 | . . . . . . . . . . . . . 3 Grunt 13 | . 2 4 . 2 . 2 3 . . . . . . Brawler 2 | . . . . . . . 2 . . . . . . Duelist 2 | . . . . . . . 2 . . . . . . Sentry 4 | . . . . 1 1 . 2 . . . . . . Hunter 1 | . . . . . . . 1 . . . . . . Programmer 3 | . . . . . 1 . . . . . . . 2 Subdweller 3 | . . . 3 . . . . . . . . . . Best Kill Streak 8 | . 2 2 1 8 4 2 6 . . . 1 1 3 Combat Bots Only 7 | . 2 2 1 7 4 2 6 . . . . 1 3 Max Kills in Single Turn 3 | . 1 1 1 1 1 1 3 . . . 1 1 1 Gunslinging . | . . . . . . . . . . . . . . Exploded 3 | . . . . . . . 3 . . . . . 1 Melee 1 | . . . 1 . 1 1 1 . . . . 1 1 Uniques/NPCs Destroyed 1 | . . . . . . . . . . . 1 . . Data Miner (-6/Data Miner) Combat | -11 -10 -10 -10 -8 -7 -7 -7 -6 -6 -6 -6 -5 -5 -------- Run | Yrd Mat Min Sub Mat Fac Low Low Fac Low Low Dat Pro Fac Hostile Shots Fired 626 | . 24 15 12 37 105 26 222 4 . . 4 20 157 Missed 204 | . 9 5 5 12 42 12 71 1 . . 2 12 33 Hits 422 | . 15 10 7 25 63 14 151 3 . . 2 8 124 Melee 26 | . . . . . . . 6 . . . . . 20 Projectile 396 | . 15 10 7 25 63 14 145 3 . . 2 8 104 AOE 2 | . . . . . . . . . . . . . 2 Critical Strikes 25 | . . 1 1 . 2 . 7 . . . . 1 13 Damage Taken 7108 | . 160 139 261 233 709 211 2431 58 . . 91 116 2699 Core 1971 | . 78 16 80 15 198 25 471 38 . . 45 . 1005 Absorbed by Shields . | . . . . . . . . . . . . . . Redirected to Shielding 150 | . . . . . . . . . . . . . 150 Regen/Repaired (Parts) 199 | . . . . . . . . . . . . . 199 Core Remaining (%) 63 | 100 . . 30 97 . . . . . . . 90 . Volleys Fired 109 | . 12 14 7 19 . . 43 . . . . . 14 Largest 2 | . 2 2 2 2 . . 2 . . . . . 2 Hottest 149 | . 70 70 70 90 . . 149 . . . . . 66 Shots Fired 183 | . 23 28 14 35 . . 66 . . . . . 17 Gun 164 | . 23 28 14 35 . . 48 . . . . . 16 Cannon 12 | . . . . . . . 12 . . . . . . Launcher 6 | . . . . . . . 6 . . . . . . Special 1 | . . . . . . . . . . . . . 1 Kinetic 100 | . 12 14 7 19 . . 32 . . . . . 16 Thermal 76 | . 11 14 7 16 . . 28 . . . . . . Explosive 6 | . . . . . . . 6 . . . . . . Electromagnetic . | . . . . . . . . . . . . . . Robot Hit Streak 14 | . 5 14 12 6 . . 5 . . . . . 6 Robot Miss Streak 4 | . 4 2 1 4 . . 3 . . . . . 2 Penetration Max . | . . . . . . . . . . . . . . Secondary Targets 2 | . 1 . . 1 . . . . . . . . . Max Gunslinging Chain 1 | . 1 . . 1 . . . . . . . . . Shots Hit Robots 193 | . 11 20 18 18 23 8 49 . 6 3 1 2 34 Core Hits 105 | . 7 11 4 13 5 6 38 . 2 2 1 . 16 Critical Kills 2 | . . . 1 . . . . . . . . . 1 Critical Parts Destroyed 4 | . . . . . 1 . . . . . . . 3 Critical Strikes 16 | . . . 2 1 1 . . . . . . . 12 Burn 2 | . . . 1 1 . . . . . . . . . Destroy 4 | . . . . . . . . . . . . . 4 Smash 2 | . . . 1 . 1 . . . . . . . . Sever 4 | . . . . . . . . . . . . . 4 Impale 4 | . . . . . . . . . . . . . 4 Melee Attacks 154 | . . . 28 3 34 12 8 1 8 3 5 9 43 Impact 52 | . . . 28 3 21 . . . . . . . . Slashing 58 | . . . . . 13 12 8 . . . 5 8 12 Piercing 44 | . . . . . . . . 1 8 3 . 1 31 Sneak Attacks 6 | . . . 2 . 1 1 . . . . 1 1 . Combat Hostiles 4 | . . . 2 . . 1 . . . . . 1 . Follow-up Attacks 7 | . . . . . 2 . . . . . . . 5 Damage Inflicted 5998 | . 128 203 367 330 1102 489 1842 . 308 171 88 144 826 Guns 1481 | . 128 203 126 296 . . 657 . . . . . 71 Cannons 126 | . . . . . . . 126 . . . . . . Explosions 606 | . . . . . . . 606 . . . . . . Melee 3782 | . . . 241 34 1102 489 453 . 308 171 88 144 752 Ramming 3 | . . . . . . . . . . . . . 3 Kinetic 759 | . 65 66 50 107 . . 400 . . . . . 71 Thermal 848 | . 63 137 76 189 . . 383 . . . . . . Explosive 606 | . . . . . . . 606 . . . . . . Electromagnetic . | . . . . . . . . . . . . . . Impact 926 | . . . 241 34 651 . . . . . . . . Slashing 1888 | . . . . . 451 489 453 . . . 88 144 263 Piercing 968 | . . . . . . . . . 308 171 . . 489 Highest Corruption 5 | . . . . . . . 5 . . . . . 2 Average Corruption 3 | . . . . . . . 4 . . . . . 1 Corruption Purged 1 | . . . . . . . 1 . . . . . . Corruption Blocked . | . . . . . . . . . . . . . . Effects 14 | . . . . . . . 11 . . . . . 3 Message Errors 3 | . . . . . . . 2 . . . . . 1 Matter Fused 3 | . . . . . . . 2 . . . . . 1 Heat Flow Errors 1 | . . . . . . . 1 . . . . . . Energy Discharges 4 | . . . . . . . 3 . . . . . 1 Parts Rejected 1 | . . . . . . . 1 . . . . . . Data Loss (minor) 1 | . . . . . . . 1 . . . . . . Data Loss (major) 1 | . . . . . . . 1 . . . . . . Overload Shots . | . . . . . . . . . . . . . . Overflow Damage 559 | . . . 74 . 134 . 172 . 46 34 . 47 52 Projectiles . | . . . . . . . . . . . . . . Explosions . | . . . . . . . . . . . . . . Melee 559 | . . . 74 . 134 . 172 . 46 34 . 47 52 Knockbacks . | . . . . . . . . . . . . . . Impact . | . . . . . . . . . . . . . . Kinetic . | . . . . . . . . . . . . . . Secondary . | . . . . . . . . . . . . . . Self-Inflicted Damage 148 | . . . . . . . 147 . . . . . 1 Shots 5 | . . . . . . . 5 . . . . . . Rammed 1 | . . . . . . . . . . . . . 1 Targets Rammed 1 | . . . . . . . . . . . . . 1 Kicked . | . . . . . . . . . . . . . . Crushed . | . . . . . . . . . . . . . . Highest Temperature 326 | . 139 179 267 326 1 9 249 . . . . . 162 Average Temperature 69 | . 54 61 178 101 1 3 53 . . . . . 45 Received Heat Transfer 1295 | . 60 96 335 36 84 72 417 27 . . . 9 159 Effects 1 | . . . . 1 . . . . . . . . . Interference 1 | . . . . 1 . . . . . . . . . Siege Activations . | . . . . . . . . . . . . . . Martial Activations . | . . . . . . . . . . . . . . Shielding Activations . | . . . . . . . . . . . . . . Robots Disrupted . | . . . . . . . . . . . . . . Combat Hostiles . | . . . . . . . . . . . . . . Robots Corrupted 2 | . . . 1 . 1 . . . . . . . . Combat Hostiles 2 | . . . 1 . 1 . . . . . . . . Parts Fried 2 | . . . 2 . . . . . . . . . . Impact Corruptions 8 | . . . 2 . 6 . . . . . . . . Robots Melted . | . . . . . . . . . . . . . . Combat Hostiles . | . . . . . . . . . . . . . . Parts Melted 6 | . . 1 . 3 . . 2 . . . . . . Heat Transferred 2063 | . 185 407 296 518 . . 657 . . . . . . Parts Sabotaged . | . . . . . . . . . . . . . . Parts Stolen . | . . . . . . . . . . . . . . Parts Stripped . | . . . . . . . . . . . . . . Power Chain Reactions . | . . . . . . . . . . . . . . Alert | -11 -10 -10 -10 -8 -7 -7 -7 -6 -6 -6 -6 -5 -5 ------- Run | Yrd Mat Min Sub Mat Fac Low Low Fac Low Low Dat Pro Fac Maximum Alert Level 1 | . . . . . . . . . . . . . 1 Low Security (%) 92 | 100 100 100 . 100 100 . . 100 . . . . 63 Level 1 7 | . . . . . . . . . . . . . 36 Level 2 . | . . . . . . . . . . . . . . Level 3 . | . . . . . . . . . . . . . . Level 4 . | . . . . . . . . . . . . . . Level 5 . | . . . . . . . . . . . . . . High Security . | . . . . . . . . . . . . . . Max Security . | . . . . . . . . . . . . . . Peak Influence 312 | . 50 42 . 155 80 . . 55 . . . . 312 Initial 312 | . . 3 . . 60 . . 23 . . . . 312 Average 48 | . 9 5 . 38 33 . . 24 . . . . 159 Influence Increases 2472 | . 75 104 . 231 234 265 419 75 10 70 20 140 829 Destroy 0b10 Robot/C 1160 | . 60 80 . 180 120 120 360 . . . 20 . 220 Destroy 0b10 Robot/NC 50 | . . . . 5 5 . 10 . 10 10 . 5 5 Destroy Leader 174 | . 10 20 . 30 32 10 30 . . . . . 42 Allied During Kill 4 | . . . . . . . 4 . . . . . . Successful Hack 86 | . 5 4 . 14 . . . . . . . . 63 Disable Machine 45 | . . . . . . . . 15 . . . . 30 Destroy Structure 8 | . . . . 2 2 . . . . . . . 4 Advance Influence 300 | . . . . . . . . . . . . . 300 Partial Spotted 60 | . . . . . 45 . . . . . . . 15 Lose Combat Pursuer 585 | . . . . . 30 135 15 60 . 60 . 135 150 Influence Decreases 2420 | . 65 114 . 98 314 193 506 108 15 40 40 130 797 Entered New Map 191 | . . 7 . . 73 20 25 15 3 . 30 10 8 Time Decay 1411 | . 65 97 . 98 201 153 224 93 12 40 10 120 298 Lost Part 487 | . . 10 . . 40 20 217 . . . . . 200 Lost Ally 40 | . . . . . . . 40 . . . . . . Purge Threat 291 | . . . . . . . . . . . . . 291 Squads Dispatched 12 | . 1 . . 1 . . 1 3 . . . 1 5 Investigation 2 | . . . . . . . . . . . . . 2 Extermination 1 | . . . . . . . . . . . . . 1 Reinforcement 6 | . 1 . . 1 . . . 3 . . . . 1 Assault 2 | . . . . . . . 1 . . . . 1 . Garrison . | . . . . . . . . . . . . . . Intercept 1 | . . . . . . . . . . . . . 1 Searches Triggered . | . . . . . . . . . . . . . . Construction Impeded . | . . . . . . . . . . . . . . Haulers Reinforced . | . . . . . . . . . . . . . . Active Scanning Responses . | . . . . . . . . . . . . . . Cargo Convoy Interrupts . | . . . . . . . . . . . . . . Stealth | -11 -10 -10 -10 -8 -7 -7 -7 -6 -6 -6 -6 -5 -5 --------- Run | Yrd Mat Min Sub Mat Fac Low Low Fac Low Low Dat Pro Fac Distress Signals 5 | . . . . 1 1 . . . . . . . 3 Communications Jammed . | . . . . . . . . . . . . . . Distress Signals . | . . . . . . . . . . . . . . Times Spotted 151 | . 12 4 5 13 10 17 23 12 . 3 4 11 37 Peak Tracking Total 8 | . 4 2 2 5 4 4 7 3 . 4 4 7 8 Tactical Retreats 22 | . . . 1 . 2 3 1 2 . 2 . 5 6 Traps | -11 -10 -10 -10 -8 -7 -7 -7 -6 -6 -6 -6 -5 -5 ------- Run | Yrd Mat Min Sub Mat Fac Low Low Fac Low Low Dat Pro Fac Traps Triggered 2 | . . . 2 . . . . . . . . . . Indirectly . | . . . . . . . . . . . . . . Trap Hack Attempts . | . . . . . . . . . . . . . . Triggered . | . . . . . . . . . . . . . . Disarmed . | . . . . . . . . . . . . . . Reprogrammed . | . . . . . . . . . . . . . . Reused . | . . . . . . . . . . . . . . Traps Extracted . | . . . . . . . . . . . . . . Installed . | . . . . . . . . . . . . . . Triggered . | . . . . . . . . . . . . . . Machines | -11 -10 -10 -10 -8 -7 -7 -7 -6 -6 -6 -6 -5 -5 ---------- Run | Yrd Mat Min Sub Mat Fac Low Low Fac Low Low Dat Pro Fac Machines Disabled 5 | . . . . . . 1 1 1 . . . . 2 Max in Single Turn 1 | . . . . . . 1 1 1 . . . . 1 Garrison Access 1 | . . . . . 1 . . . . . . . . Machines Repaired . | . . . . . . . . . . . . . . Machines Dismantled . | . . . . . . . . . . . . . . Machines Sabotaged . | . . . . . . . . . . . . . . Overloaded Fab Kills . | . . . . . . . . . . . . . . Hacking | -11 -10 -10 -10 -8 -7 -7 -7 -6 -6 -6 -6 -5 -5 --------- Run | Yrd Mat Min Sub Mat Fac Low Low Fac Low Low Dat Pro Fac Machines Accessed 30 | . 3 1 . 1 7 1 . 4 . . 4 . 9 Terminals 16 | . 3 1 . 1 3 . . 4 . . . . 4 Fabricators 2 | . . . . . 1 . . . . . . . 1 Repair Stations 3 | . . . . . . . . . . . . . 3 Recycling Units 1 | . . . . . . . . . . . . . 1 Scanalyzers 1 | . . . . . 1 . . . . . . . . Garrison Access 2 | . . . . . 2 . . . . . . . . Total Hacks 115 | . 7 4 . 7 10 1 . 11 . . 28 . 47 Successful 65 | . 2 2 . 3 2 1 . 1 . . 28 . 26 Failed 50 | . 5 2 . 4 8 . . 10 . . . . 21 Catastrophic 8 | . . 1 . 1 2 . . 2 . . . . 2 Database Lockouts . | . . . . . . . . . . . . . . Manual 38 | . 1 2 . 3 . 1 . 7 . . . . 24 Terminals 64 | . 7 4 . 7 4 . . 11 . . . . 31 Fabricators 4 | . . . . . 1 . . . . . . . 3 Repair Stations 10 | . . . . . . . . . . . . . 10 Recycling Units 3 | . . . . . . . . . . . . . 3 Scanalyzers 2 | . . . . . 2 . . . . . . . . Garrison Access 3 | . . . . . 3 . . . . . . . . Terminal Hacks 49 | . 2 2 . 3 . 1 . 1 . . 28 . 12 Record 14 | . . 1 . . . 1 . 1 . . 11 . . Part Schematic 14 | . . . . . . . . . . . 10 . 4 Robot Schematic 4 | . . . . . . . . . . . 4 . . Prototype ID Bank 5 | . . . . 1 . . . . . . 3 . 1 Level Access Points 1 | . . . . . . . . . . . . . 1 Branch Access Points 1 | . . . . . . . . . . . . . 1 Alert Level 2 | . . . . . . . . . . . . . 2 Unreport Threat 2 | . . . . . . . . . . . . . 2 Locate Traps 1 | . . . . 1 . . . . . . . . . Dispatch Records 1 | . . 1 . . . . . . . . . . . Transport Status 1 | . . . . 1 . . . . . . . . . Recall Reinforcements 1 | . 1 . . . . . . . . . . . . Hauler Manifests 1 | . 1 . . . . . . . . . . . . Registered Components 1 | . . . . . . . . . . . . . 1 Fabricator Hacks 4 | . . . . . 1 . . . . . . . 3 Network Status 2 | . . . . . 1 . . . . . . . 1 Load Schematic 1 | . . . . . . . . . . . . . 1 Build 1 | . . . . . . . . . . . . . 1 Repair Station Hacks 7 | . . . . . . . . . . . . . 7 Scan Component 4 | . . . . . . . . . . . . . 4 Repair 3 | . . . . . . . . . . . . . 3 Recycling Unit Hacks 3 | . . . . . . . . . . . . . 3 Process 1 | . . . . . . . . . . . . . 1 Report Inventory 1 | . . . . . . . . . . . . . 1 Retrieve Matter 1 | . . . . . . . . . . . . . 1 Scanalyzer . | . . . . . . . . . . . . . . Garrison Access Hacks 1 | . . . . . 1 . . . . . . . . Seal Access 1 | . . . . . 1 . . . . . . . . Unauthorized Hacks 1 | . . . . . . . . . . . . . 1 Terminals 1 | . . . . . . . . . . . . . 1 Botnet 1 | . . . . . . . . . . . . . 1 Fabricators . | . . . . . . . . . . . . . . Repair Stations . | . . . . . . . . . . . . . . Recycling Units . | . . . . . . . . . . . . . . Scanalyzers . | . . . . . . . . . . . . . . Garrison Access . | . . . . . . . . . . . . . . Data Cores Recovered . | . . . . . . . . . . . . . . Used . | . . . . . . . . . . . . . . Hacking Detections 23 | . 3 1 . 1 6 . . 4 . . . . 8 Full Trace Events 2 | . . . . . . . . . . . . . 2 Feedback Events . | . . . . . . . . . . . . . . Feedback Blocked 1 | . . . . . . . . . . . . . 1 Robot Schematics Acquired 4 | . . . . . . . . . . . 4 . . Robots Built . | . . . . . . . . . . . . . . Authchips . | . . . . . . . . . . . . . . Time . | . . . . . . . . . . . . . . Total Robot Build Rating . | . . . . . . . . . . . . . . Part Schematics Acquired 14 | . . . . . . . . . . . 10 . 4 Parts Built 1 | . . . . . . . . . . . . . 1 Authchips . | . . . . . . . . . . . . . . Time 152 | . . . . . . . . . . . . . 152 Total Part Build Rating 5 | . . . . . . . . . . . . . 5 Part Studies Acquired . | . . . . . . . . . . . . . . Parts Repaired 3 | . . . . . . . . . . . . . 3 Time 78 | . . . . . . . . . . . . . 78 Parts Recycled . | . . . . . . . . . . . . . . Recycled Matter 19 | . . . . . . . . . . . . . 19 Retrieved Matter 19 | . . . . . . . . . . . . . 19 Retrieved Components . | . . . . . . . . . . . . . . Parts Scanalyzed . | . . . . . . . . . . . . . . Part Schematics Acquired . | . . . . . . . . . . . . . . Parts Damaged . | . . . . . . . . . . . . . . Bothacking | -11 -10 -10 -10 -8 -7 -7 -7 -6 -6 -6 -6 -5 -5 ------------ Run | Yrd Mat Min Sub Mat Fac Low Low Fac Low Low Dat Pro Fac Used RIF Installer . | . . . . . . . . . . . . . . Robots Hacked . | . . . . . . . . . . . . . . Non-combat . | . . . . . . . . . . . . . . Combat . | . . . . . . . . . . . . . . Robot Hacks Applied . | . . . . . . . . . . . . . . Relay Couplers Released . | . . . . . . . . . . . . . . Fabnet Peak Effective % . | . . . . . . . . . . . . . . Robots Rewired 2 | . . . . . . . 2 . . . . . . Allies Hacked . | . . . . . . . . . . . . . . Hacks Repelled . | . . . . . . . . . . . . . . Allies | -11 -10 -10 -10 -8 -7 -7 -7 -6 -6 -6 -6 -5 -5 -------- Run | Yrd Mat Min Sub Mat Fac Low Low Fac Low Low Dat Pro Fac Total Allies 2 | . . . . . . . 2 . . . . . . Largest Group 2 | . . . . . . . 2 . . . . . . Highest-Rated Group 46 | . . . . . . . 46 . . . . . . Highest-Rated Ally 30 | . . . . . . . 30 . . . . . . Total Orders . | . . . . . . . . . . . . . . Ally Attacks 16 | . . . . . . . 16 . . . . . . Total Damage 280 | . . . . . . . 280 . . . . . . Kills 1 | . . . . . . . 1 . . . . . . Allies Corrupted 1 | . . . . . . . 1 . . . . . . Allies Melted . | . . . . . . . . . . . . . . Intel | -11 -10 -10 -10 -8 -7 -7 -7 -6 -6 -6 -6 -5 -5 ------- Run | Yrd Mat Min Sub Mat Fac Low Low Fac Low Low Dat Pro Fac Active Infowar (turns) 6571 | . 176 1103 880 406 477 357 1458 154 305 247 79 249 680 Sensors 1404 | . . . . . . . . 106 305 247 79 249 418 Terrain 1714 | . . . . . . . . 154 305 247 79 249 680 Structural 350 | . . . . 350 . . . . . . . . . Seismic 3348 | . 176 1103 880 406 385 357 41 . . . . . . T.N.C. 2267 | . . . . . 452 357 1458 . . . . . . Robot Analysis Total 154 | . . . . . . . . . . . 154 . . Derelict Logs Recovered 10 | . . 2 . . . 1 2 . 1 2 . 2 . Drone Launches . | . . . . . . . . . . . . . . Drone Recoveries . | . . . . . . . . . . . . . . Exploration | -11 -10 -10 -10 -8 -7 -7 -7 -6 -6 -6 -6 -5 -5 ------------- Run | Yrd Mat Min Sub Mat Fac Low Low Fac Low Low Dat Pro Fac Turns Passed 7354 | 47 326 1103 880 406 477 357 1946 230 305 247 79 249 702 Spaces Moved 7086 | 43 241 845 625 309 681 666 800 556 497 409 107 381 926 Core 104 | 3 . . . . . . 70 . . . . . 31 Treads 366 | . . . . . . . 366 . . . . . . Legs 2047 | . 189 845 625 188 . . 200 . . . . . . Wheels 92 | 40 52 . . . . . . . . . . . . Hover 3322 | . . . . 57 617 666 14 81 497 409 107 381 493 Flight 1155 | . . . . 64 64 . 150 475 . . . . 402 Fastest Speed 21 | 50 80 120 120 31 31 44 32 32 56 56 56 56 21 Average Speed 85 | 79 111 120 120 92 42 44 218 35 56 56 56 56 46 Slowest Speed 750 | 100 120 120 120 360 44 112 750 56 56 56 56 56 630 Overloaded Moves . | . . . . . . . . . . . . . . Propulsion Burnouts . | . . . . . . . . . . . . . . Robots Hopped 6 | . . . . . . . . 4 . . . . 2 Potential Cave-ins 2 | . . . . . . . . . . . . 2 . Cave-ins Triggered . | . . . . . . . . . . . . . . Exploration Rate (%) 48 | 3 42 87 43 28 23 71 84 18 63 60 78 60 23 Regions Visited 13 Branch Regions 8 Pre-discovered Areas 37 | . . 1 . . . . . . . 1 35 . . Known Exits Taken 5 | . . . . . . . . 1 1 1 1 1 . Unknown Exits Taken 8 | 1 1 1 1 1 1 1 1 . . . . . . Scrap Searched 18 | . . 3 . . . 4 7 . . 3 . 1 . Spaces Dug 21 | . . . 1 . 2 . 8 . 1 . 2 5 2 Terrain Destroyed 53 | . . . 1 . 2 . 40 . 1 . 2 5 2 Melee 13 | . . . 1 . 2 . . . 1 . 2 5 2 Projectile 2 | . . . . . . . 2 . . . . . . AOE 38 | . . . . . . . 38 . . . . . . Terrain Rammed . | . . . . . . . . . . . . . . Walls Destroyed . | . . . . . . . . . . . . . . Machines Disabled . | . . . . . . . . . . . . . . Actions | -11 -10 -10 -10 -8 -7 -7 -7 -6 -6 -6 -6 -5 -5 --------- Run | Yrd Mat Min Sub Mat Fac Low Low Fac Low Low Dat Pro Fac Total 7907 | 53 280 909 689 394 803 706 915 580 511 424 118 404 1121 Wait 230 | . 7 43 26 17 38 13 13 . 3 . . 11 59 Move 7062 | 42 240 844 624 308 680 665 799 548 496 408 106 380 922 Hop 5 | . . . . . . . . 3 . . . . 2 Pick Up 103 | 5 10 4 1 13 17 5 7 8 4 9 3 2 15 Fast Attach 60 | 5 1 1 . 9 7 1 9 9 . . . . 18 Attach 42 | 1 . . 2 3 4 . 14 3 . . 1 1 13 Detach 8 | . . . . . 3 . 2 1 . . . . 2 Swap 36 | . 3 1 1 4 5 3 8 2 . . 1 . 8 Drop 94 | . 7 2 . 18 14 7 4 5 . 4 2 2 29 Fire 109 | . 12 14 7 19 . . 43 . . . . . 14 Melee 146 | . . . 28 3 32 12 8 1 8 3 5 8 38 Ram 1 | . . . . . . . . . . . . . 1 Kick . | . . . . . . . . . . . . . . Crush . | . . . . . . . . . . . . . . Escape Stasis . | . . . . . . . . . . . . . . Rewire 11 | . . . . . 3 . 8 . . . . . . Trap . | . . . . . . . . . . . . . . Miscellaneous . | . . . . . . . . . . . . . . Route ------- -11/Scrapyard -10/Materials (discovered 2 exits: [*Mat] / *Min) -10/Mines (discovered 2 exits: [*Mat] / [*Sub]) -10/Subcaves -8/Materials -7/Factory (discovered 2 exits: Sto / *Low) -7/Lower Caves -7/Lower Caves -6/Factory (discovered 3 exits: *Fac x2 / *Low) -6/Lower Caves -6/Lower Caves (discovered 2 exits: *Fac / *Dat) -6/Data Miner -5/Proximity Caves -5/Factory (discovered 6 exits: Fac x4 / Upp x2) History --------- Turn | Location | Event 23 | -11/Scrapyard | Discovered new exit (range 16) 48 | -11/Scrapyard | Entered Materials 179 | -10/Materials | Discovered new exit (range 16) 312 | -10/Materials | Discovered new exit (range 14) 317 | -10/Materials | Build established: Mutant 374 | -10/Materials | Entered Mines 992 | -10/Mines | Discovered new exit (range 14) 1419 | -10/Mines | Received a Rocket Launcher from a helpful Derelict 1468 | -10/Mines | Discovered new exit (range 8) 1477 | -10/Mines | Entered Subcaves 1502 | -10/Subcaves | Core integrity fell below 50% 1826 | -10/Subcaves | Shifting Twisted Machinery released Battle Rifle 1894 | -10/Subcaves | Shifting Twisted Machinery released Sub. Beam Cannon 2062 | -10/Subcaves | Disturbed a concealed Subdweller 2193 | -10/Subcaves | A swath of the cavern ceiling suddenly collapsed 2350 | -10/Subcaves | Discovered new exit (range 5) 2357 | -10/Subcaves | Entered Materials 2357 | -8/Materials | Evolved 4 slots: Propulsion x2, Utility x2 2726 | -8/Materials | Destroyed 7 combat bots 2751 | -8/Materials | Discovered new exit (range 16) 2763 | -8/Materials | Entered Factory 2763 | -7/Factory | Evolved 2 slots: Propulsion x1, Utility x1 2764 | -7/Factory | Identified exit to Storage 3137 | -7/Factory | Lost 3 parts (1p1n1u) 3212 | -7/Factory | Discovered new exit (range 15) 3240 | -7/Factory | Entered Lower Caves 3284 | -7/Lower Caves | Build established: Gladiator 3321 | -7/Lower Caves | Learned Factory non-interactive machine intel 3356 | -7/Lower Caves | Entered a destroyed Warlord outpost 3503 | -7/Lower Caves | Acquired the password to a Derelict Tinkerer's latest research 3510 | -7/Lower Caves | Found Prototype Special Weapon 3582 | -7/Lower Caves | Discovered new exit (range 15) 3597 | -7/Lower Caves | Entered another Lower Caves area 3599 | -7/Lower Caves | Attracted the attention of an 0b10 checkpoint 3605 | -7/Lower Caves | Learned location of 1 exit from Factory 3613 | -7/Lower Caves | Identified Molecular Deconstructor 3669 | -7/Lower Caves | Lost 9 parts (7n1u1w) 3900 | -7/Lower Caves | Build established: Mutant 4292 | -7/Lower Caves | Discovered new exit (range 13) 4873 | -7/Lower Caves | Learned Factory emergency access door positions 5005 | -7/Lower Caves | Build established: Scavenger-Mutant 5035 | -7/Lower Caves | Attracted the attention of an 0b10 outpost 5095 | -7/Lower Caves | Lost 7 parts (1p4n2u) 5140 | -7/Lower Caves | Core integrity fell below 50% 5204 | -7/Lower Caves | Lost 5 parts (1n2u2w) 5329 | -7/Lower Caves | Build established: Mutant 5432 | -7/Lower Caves | Spotted B-75 Beast 5455 | -7/Lower Caves | Core integrity fell below 20% 5521 | -7/Lower Caves | Lost 7 parts (1p2u4w) 5543 | -7/Lower Caves | Entered Factory 5543 | -6/Factory | Evolved 2 slots: Power x1, Utility x1 5544 | -6/Factory | Identified exit to Factory 5546 | -6/Factory | Loaded intel: 233 non-interactive machine locations 5656 | -6/Factory | Discovered exit to Factory (range 5) 5748 | -6/Factory | Discovered new exit (range 16) 5763 | -6/Factory | Identified exit to Lower Caves 5773 | -6/Factory | Entered Lower Caves 5885 | -6/Lower Caves | Encountered a Warlord checkpoint 5914 | -6/Lower Caves | Discovered new exit (range 10) 5960 | -6/Lower Caves | Build established: Scout 6000 | -6/Lower Caves | Identified exit to Lower Caves 6078 | -6/Lower Caves | Entered another Lower Caves area 6091 | -6/Lower Caves | Discovered exit to Factory (range 8) 6129 | -6/Lower Caves | Encountered a Warlord checkpoint 6208 | -6/Lower Caves | Identified exit to Data Miner 6325 | -6/Lower Caves | Entered Data Miner 6325 | -6/Data Miner | Discovered new exit (range 6) 6328 | -6/Data Miner | Identified exit to Proximity Caves 6337 | -6/Data Miner | Met Data Miner 6353 | -6/Data Miner | Learned location of Section 7 (-2) 6353 | -6/Data Miner | Acquired the access code to Warlord's prototype stash 6362 | -6/Data Miner | Received God Mode back door access code from Data Miner 6369 | -6/Data Miner | Destroyed Data Miner 6371 | -6/Data Miner | Interfaced with the Data Conduit 6373 | -6/Data Miner | Found Prototype Hackware 6375 | -6/Data Miner | Found Prototype Hackware 6377 | -6/Data Miner | Found Prototype Hackware 6404 | -6/Data Miner | Entered Proximity Caves 6408 | -5/Proximity Caves | Attracted the attention of an 0b10 checkpoint 6409 | -5/Proximity Caves | Spotter reported a threat 6439 | -5/Proximity Caves | Learned Factory garrison access intel 6455 | -5/Proximity Caves | Unaware initiated a cargo recovery operation 6494 | -5/Proximity Caves | Spotted B-75 Beast 6503 | -5/Proximity Caves | Spotter reported a threat 6507 | -5/Proximity Caves | Attracted the attention of an 0b10 outpost 6517 | -5/Proximity Caves | Encountered a Derelict guarding a broken Freighter 6642 | -5/Proximity Caves | Discovered exit to Factory (range 4) 6648 | -5/Proximity Caves | Learned 4 Factory zone layouts 6653 | -5/Proximity Caves | Entered Factory 6653 | -5/Factory | Evolved 2 slots: Propulsion x1, Utility x1 6653 | -5/Factory | Identified Quantum Router 6655 | -5/Factory | Loaded intel: 302 machine locations 6655 | -5/Factory | Identified System Mapper 6656 | -5/Factory | Loaded intel: 4 garrison access locations 6761 | -5/Factory | Repaired Gravmag Array 6776 | -5/Factory | Identified exit to Factory 6891 | -5/Factory | Identified exit to Upper Caves 7032 | -5/Factory | Lost 3 parts (1n2u) 7061 | -5/Factory | Identified Deep Network Scanner 7226 | -5/Factory | Repaired Imp. Surge Thruster 7256 | -5/Factory | Repaired Mic. Fission Core 7287 | -5/Factory | Intercept squad dispatched 7312 | -5/Factory | Spotted Tracker 7327 | -5/Factory | Fabricated Cld. Cesium-ion Thruster? 7335 | -5/Factory | Core integrity fell below 50% 7340 | -5/Factory | Spotted Combat Programmer 7345 | -5/Factory | Core integrity fell below 20% 7355 | -5/Factory | Destroyed by Combat Programmer with EMDS Last Messages --------------- Thruster? 07327_ Slammed into Tracker. 07329_ Mak. Flight Unit destroyed. 07330_ Mic. Fission Core destroyed. 07333_ Exp. Utility Shielding destroyed. 07333_ Adv. Terrain Scanner destroyed. 07334_ Lance destroyed. 07337_ Deep Network Scanner destroyed. 07340_ EMDS Slug penetrates Wall. 07342_ EMDS Slug penetrates Door. 07344_ Penetrated by EMDS Slug. 07347_ EMDS Slug penetrates Wall. 07349_ Acquired Nuclear Pulse Thruster. 07350_ Penetrated by EMDS Slug. 07350_ Nuclear Pulse Thruster destroyed. 07350_ Adv. Weight Redist. System destroyed. 07352_ Penetrated by EMDS Slug. 07352_ Acquired Lgt. Angular Momentum Engine. 07353_ Lgt. Angular Momentum Engine destroyed. 07355_ Penetrated by EMDS Slug. Map ----- +----------------------------------------------------+ | ##?????????##? ?? ??? ???????????????????????????? | | ###???+#???###?#??##??#??????????????????????????? | | # ??? ??? ##??#? ?? ?????????????????????????? | | # # ? ? """"""????????????????????????? | | # """"""" #???? """"""????????????????????????? | | # """"""" #??## """""" ???????????????????????? | | # """"""" #??##?""""""? ?????????????????????? | | + """"""" ##?#????? ?? * ????????"""????????? | | # #?#?#?""" #???????"""????????? | | # |##### """??? #???????"""????????? | | # ! ##??# """? #?? ???""????????? | | # ! #???#? ??? ? ??? #??""????????? | | / !! ! #??##?? ? ??? #????????????? | | # !! [####??? ? ? ??? #????????????? | | #######/#################+##### ##??????""???? | | / u #??????"Y???? | | #??????""???? | | #???????????? | | #???????????? | | #???????????? | | #???????????? | | #???????????? | | ##############g#########s#### #???????????? | | +#######?# p #????? #??!????????? | | #### ! g #????????????????????? | | #??# @ #????????????????????? | | #?## ! #????????????????????? | | #??# #????????????????????? | | """ #??# ! #????>???????????????? | | """" ####! #????????????????????? | | """" #### #????????????????????? | | ##?####################????????????????????? | | """#??#?? ? ?????????????????????????????????? | | Y"#####? """"""" ????????????????????????"""" | | """#????#?"""""""?? #?????????????????????"""" | | / #??????"""""""?? #?????????????????????"""" | | ############?"""""""? #?"""?????????????????"""" | | #? ? #?"""????????????????????? | | # """"""" #?"""????????????????????? | | # """"""" ! #????????????????????????? | | # """"""" #?"""????????????""""????? | | # """"""" ??"""?#??????????""""????? | | # ??"""?? ?????????""""????? | | #? ? ?? #?????? ?????????""""????? | | #### ######+#######? ?????? ???????""""????? | | ?# ##??????# ?????????""""????? | | ???# ##???#?##??????????""""????? | | ??# ?????????????????????? | | ? ?# ^ ??????????????????? | | ? # """" """" ??????????????????? | +----------------------------------------------------+ Best States ------------- Heat Dissipation 40 Energy Generation 32 Energy Capacity 290 Matter Stores 300 Matter Capacity 300 Sight Range 16 Robot Scan Range 15 Terrain Scan Range 20 Terrain Scan Density 210 Additional Mass Support 9 Armor Coverage 225 Resistance: KI 20 Resistance: EM 25 Utility Shielding 90 Melee Speed Boost 20 Evasion (%) 65 Melee Accuracy 6 Core Analysis 6 Recoil Reduction 1 Offensive Hacking 45 Defensive Hacking 25 Item Schematics ----------------- Combat Drone Bay | -6/Data Miner | Free Lgt. Regenerative Plating | -6/Data Miner | Free Cld. Nuclear Pulse Thruster | -6/Data Miner | Free Adv. EM Disruption Field | -6/Data Miner | Free Imp. KE Penetrator | -6/Data Miner | Free Field Propulsion Array | -6/Data Miner | Free Adv. Reaction Control System | -6/Data Miner | Free Hvy. Gauss Cannon | -6/Data Miner | Free Phase Gun | -6/Data Miner | Free Impulse Thruster Array | -6/Data Miner | Free Hover Unit | -5/Factory | Hacked Cld. Cesium-ion Thruster | -5/Factory | Hacked Gravmag Array | -5/Factory | Hacked Biometal Medium Treads | -5/Factory | Hacked Robot Schematics ------------------ R-10 Processor | -6/Data Miner | Free H-66 Slayer | -6/Data Miner | Free B-60 Warrior | -6/Data Miner | Free M-36 Artificer | -6/Data Miner | Free Fabricated ------------ Cld. Cesium-ion Thruster | x1 | -5/Factory Repaired ---------- Gravmag Array | 58% | -5/Factory Imp. Surge Thruster | 12% | -5/Factory Mic. Fission Core | 10% | -5/Factory Studied --------- None Alien Tech Used ----------------- None Achievements -------------- Deductive Reasoning Look Less Dangerous Next Time Unlimited Data Challenges ------------ None Game ------ Seed UltimateTachyonRedistributor Manual? 0 Play Time 01:50:05 Cumulative 36.1 hours Start 2026.04.30 @ 08:37:37 End 2026.04.30 @ 10:29:55 Sessions 1 Manual Loads 0 Difficulty Rogue Special Mode None Game No. 39 Rogue 39 Adventurer 0 Explorer 0 Win Type - Total 1 Types 1/0/0/0/0/0/0/0/0/0 Lore% 30 Gallery% 34 Achievement% 30 Wizard Run 0 Options --------- Layout 1 ASCII 0 Keyboard 0 Movement Mouse Keybinds 0 Fullscreen 2 Font 24/Smallcaps Map View 50x35 Zoom Use 0% Tactical HUD 1 Map Filters NONE Filters NONE Steam 1 RUN: 43b69d79-a189-499c-9d22-ce00a30c8d3d